bitfinex/quotes_SOLUSD_20250717
["timestamp","ask_amount","ask_price","bid_price","bid_amount"]
[1752751651623,35.86744604,175.83,175.81,8.56796253]
[1752751651813,5.68707699,175.84,175.82,8.46796253]
[1752751652118,6.35664257,175.86,175.83,8.46796253]
[1752751652521,30.16,175.85,175.83,8.46796253]
[1752751652896,30.83,175.85,175.83,8.46796253]
[1752751653105,30.83,175.85,175.82,8.46796253]
[1752751654122,36.51695282,175.85,175.82,8.46796253]
[1752751654417,5.68642257,175.86,175.84,8.46796253]
[1752751654602,3.02622953,176.01,175.81,0.1]
[1752751654603,0.67,175.89,175.85,8.46796253]
[1752751654802,30.79,175.88,175.86,8.46796253]
[1752751655402,5.68537153,175.89,175.87,8.46796253]
[1752751655604,30.12,175.88,175.87,8.46796253]
[1752751656223,35.80569479,175.88,175.86,8.46796253]
[1752751656538,0.67,175.87,175.83,1.6495]
[1752751656694,30.81,175.86,175.83,10.11746253]
[1752751656898,0.67,175.85,175.83,8.46796253]
[1752751657201,30.81,175.84,175.82,5.29022614]
[1752751657411,30.14,175.83,175.82,5.29022614]
[1752751659221,30.14,175.83,175.81,0.1]
[1752751659427,30.14,175.83,175.82,5.29022614]
[1752751659620,30.14,175.83,175.81,0.1]
[1752751659804,35.82734391,175.83,175.82,5.29022614]
[1752751661019,36.49734391,175.83,175.81,5.39022614]
[1752751663509,36.49734391,175.83,175.81,0.1]
[1752751664121,0.67,175.82,175.81,0.1]
[1752751665001,30.75,175.82,175.81,0.1]
[1752751666218,36.43763508,175.82,175.81,0.1]
[1752751669009,5.68763508,175.82,175.81,0.1]
[1752751669209,35.72763508,175.82,175.81,0.1]
[1752751669513,36.39763508,175.82,175.81,0.1]
[1752751671438,35.72763508,175.82,175.81,0.1]
[1752751672114,30.04,175.82,175.81,0.1]
[1752751672308,35.72763508,175.82,175.81,0.1]
[1752751672512,30.04,175.82,175.81,5.39022614]
[1752751673032,30.04,175.82,175.81,0.1]
[1752751673214,30.04,175.82,175.81,5.39022614]
[1752751673731,5.68752332,175.83,175.81,5.39022614]
[1752751673908,35.68752332,175.83,175.81,5.39022614]
[1752751674729,0.67,175.82,175.81,0.1]
[1752751675311,35.68752332,175.83,175.81,0.1]
[1752751676233,36.35752332,175.83,175.81,0.1]
[1752751678025,0.67,175.82,175.81,0.1]
[1752751679011,6.35763508,175.82,175.81,0.1]
[1752751681113,5.68763508,175.82,175.81,0.1]
[1752751681411,35.66763508,175.82,175.81,5.39022614]
[1752751682643,35.66763508,175.82,175.81,0.1]
[1752751684523,0.69,175.87,175.81,5.77022614]
[1752751684728,0.69,175.89,175.86,5.29022614]
[1752751684931,29.94,175.88,175.86,5.29022614]
[1752751685140,30.63,175.88,175.85,5.29022614]
[1752751687134,36.31599818,175.88,175.85,5.29022614]
[1752751687837,29.94,175.88,175.86,5.29022614]
[1752751688233,29.94,175.88,175.87,5.29022614]
[1752751689934,35.62572107,175.88,175.85,0.38]
[1752751690138,29.94,175.88,175.86,5.29022614]
[1752751690527,19.50148991,175.92,175.86,5.29022614]
[1752751690528,0.69,175.92,175.87,5.29022614]
[1752751690839,30.61,175.91,175.88,5.29022614]
[1752751691526,29.92,175.91,175.88,5.29022614]
[1752751691844,29.92,175.91,175.9,5.29022614]
[1752751692224,41.58495128,175.91,175.81,2.1451]
[1752751692422,5.29022614,175.89,175.84,5.29022614]
[1752751692628,30.59,175.88,175.84,5.29022614]
[1752751692823,0.69,175.87,175.84,5.29022614]
[1752751693144,0.69,175.87,175.83,26.0]
[1752751693446,0.69,175.86,175.84,5.29022614]
[1752751693658,36.27658569,175.86,175.84,5.29022614]
[1752751694023,35.58658569,175.86,175.84,5.29022614]
[1752751694645,35.58658569,175.86,175.83,31.29022614]
[1752751695940,36.27658569,175.86,175.83,5.29022614]
[1752751697036,0.69,175.85,175.81,0.1]
[1752751697236,30.59,175.84,175.81,0.1]
[1752751697758,0.69,175.83,175.81,0.1]
[1752751697956,35.58763508,175.82,175.81,0.1]
[1752751698455,36.27763508,175.82,175.81,0.1]
[1752751699047,35.58763508,175.82,175.81,0.1]
[1752751699746,35.58763508,175.82,175.81,5.39022614]
[1752751700456,29.9,175.82,175.81,5.39022614]
[1752751700649,35.58708972,175.84,175.81,5.39022614]
[1752751700948,0.69,175.86,175.83,5.29022614]
[1752751701154,29.9,175.85,175.83,5.29022614]
[1752751701859,35.58686012,175.85,175.83,5.29022614]
[1752751703036,35.58686012,175.85,175.82,5.29022614]
[1752751703451,36.27686012,175.85,175.82,5.29022614]
[1752751704158,35.58686012,175.85,175.82,5.29022614]
[1752751704341,29.9,175.86,175.84,5.29022614]
[1752751704544,29.9,175.86,175.85,5.29022614]
[1752751704735,5.68569723,175.88,175.85,5.29022614]
[1752751704942,29.9,175.88,175.87,5.29022614]
[1752751705353,30.59,175.88,175.86,5.29022614]
[1752751705555,30.59,175.88,175.85,5.29022614]
[1752751705758,5.68601808,175.87,175.85,5.29022614]
[1752751705956,0.69,175.86,175.84,5.29022614]
[1752751706252,30.59,175.86,175.84,5.29022614]
[1752751706464,29.9,175.86,175.82,26.03]
[1752751706673,30.59,175.86,175.84,5.29022614]
[1752751706848,0.69,175.85,175.83,5.29022614]
[1752751707048,29.9,175.84,175.82,31.32022614]
[1752751707241,30.59,175.84,175.82,31.32022614]
[1752751707442,30.59,175.84,175.82,5.32022614]
[1752751707844,36.27704161,175.84,175.82,5.32022614]
[1752751708169,36.2769919,175.84,175.82,31.32022614]
[1752751708369,36.2769919,175.84,175.82,26.03]
[1752751708539,35.5869919,175.84,175.82,31.32022614]
[1752751709345,29.9,175.84,175.82,31.32022614]
[1752751709539,29.9,175.84,175.83,5.29022614]
[1752751710643,29.9,175.84,175.82,26.03]
[1752751710846,29.9,175.84,175.83,5.29022614]
[1752751711058,5.68608462,175.87,175.83,5.29022614]
[1752751711059,5.68635406,175.86,175.83,5.29022614]
[1752751711266,35.58635406,175.86,175.84,5.29022614]
[1752751711451,29.9,175.86,175.84,5.29022614]
[1752751713769,29.9,175.86,175.82,26.03]
[1752751713946,29.9,175.86,175.84,5.29022614]
[1752751715234,35.58635688,175.86,175.84,5.29022614]
[1752751716673,29.9,175.86,175.85,5.29022614]
[1752751719049,6.37611416,175.87,175.85,5.29022614]
[1752751719254,36.27611416,175.87,175.84,5.29022614]
[1752751719466,6.37636483,175.86,175.84,5.29022614]
[1752751720364,5.68636483,175.86,175.84,5.29022614]
[1752751721456,35.5860834,175.87,175.84,5.29022614]
[1752751721643,0.69,175.92,175.86,5.29022614]
[1752751721839,0.69,175.92,175.89,5.29022614]
[1752751722151,0.69,175.91,175.87,26.0]
[1752751722349,0.69,175.9,175.88,5.29022614]
[1752751722555,0.69,175.9,175.87,31.29022614]
[1752751722967,0.69,175.9,175.88,5.29022614]
[1752751723164,0.69,175.9,175.87,26.0]
[1752751723366,35.5848869,175.91,175.88,5.29022614]
[1752751723570,36.2748869,175.91,175.88,5.29022614]
[1752751724075,0.69,175.9,175.88,5.29022614]
[1752751724857,0.69,175.89,175.86,26.0]
[1752751725164,35.88022614,175.89,175.83,53.1]
[1752751725344,10.97624422,175.87,175.82,0.03]
[1752751725546,35.19022614,175.86,175.82,0.03]
[1752751725745,35.88022614,175.86,175.82,0.03]
[1752751725972,0.69,175.85,175.82,0.03]
[1752751726567,0.69,175.84,175.82,0.03]
[1752751727660,0.69,175.84,175.82,31.32022614]
[1752751727868,0.69,175.86,175.83,5.29022614]
[1752751728174,35.58628531,175.87,175.84,5.29022614]
[1752751728547,36.27628531,175.87,175.84,5.29022614]
[1752751729168,36.27628531,175.87,175.82,26.41]
[1752751729169,0.69,175.86,175.83,5.29022614]
[1752751729370,35.58628531,175.87,175.83,5.29022614]
[1752751729553,0.69,175.85,175.83,5.29022614]
[1752751730171,36.27628531,175.87,175.83,5.29022614]
[1752751730343,35.58628531,175.87,175.83,5.29022614]
[1752751730549,0.69,175.86,175.83,5.29022614]
[1752751732555,6.37635852,175.86,175.83,5.29022614]
[1752751732758,0.69,175.85,175.83,26.0]
[1752751733073,0.69,175.85,175.83,31.29022614]
[1752751733464,5.68635852,175.86,175.83,31.29022614]
[1752751733651,6.37635852,175.86,175.83,31.29022614]
[1752751734058,0.69,175.85,175.83,31.29022614]
[1752751735475,36.27604053,175.87,175.84,5.29022614]
[1752751736077,0.69,175.86,175.83,31.29022614]
[1752751736591,0.69,175.85,175.84,5.29022614]
[1752751737460,36.27604053,175.87,175.84,5.29022614]
[1752751737655,35.58604053,175.87,175.84,5.29022614]
[1752751737857,0.69,175.86,175.84,5.29022614]
[1752751738059,49.80108573,175.87,175.82,0.03]
[1752751738263,49.80108573,175.87,175.82,5.32022614]
[1752751738264,0.69,175.85,175.82,5.32022614]
[1752751739482,0.69,175.85,175.82,0.03]
[1752751739672,0.69,175.85,175.82,5.32022614]
[1752751739876,5.68698817,175.84,175.82,5.32022614]
[1752751740083,6.37698817,175.84,175.82,5.32022614]
[1752751740863,0.69,175.83,175.82,0.03]
[1752751742069,6.3773116,175.83,175.82,0.03]
[1752751743873,35.56711622,175.84,175.82,5.32022614]
[1752751744076,36.25711622,175.84,175.82,5.32022614]
[1752751744460,0.69,175.83,175.82,5.32022614]
[1752751744864,0.69,175.83,175.82,0.03]
[1752751745364,36.25675952,175.85,175.82,5.32022614]
[1752751745587,36.25675952,175.85,175.83,5.29022614]
[1752751745984,30.57,175.85,175.83,5.29022614]
[1752751746283,6.3766667,175.85,175.84,5.29022614]
[1752751746463,6.3766667,175.85,175.83,5.29022614]
[1752751746668,29.88,175.87,175.84,5.29022614]
[1752751746669,30.57,175.87,175.84,5.29022614]
[1752751746883,30.57,175.87,175.82,0.03]
[1752751747090,0.69,175.86,175.85,5.29022614]
[1752751747578,0.69,175.86,175.82,0.03]
[1752751747782,0.69,175.85,175.84,5.29022614]
[1752751748695,0.69,175.85,175.82,0.03]
[1752751748879,0.69,175.85,175.84,5.29022614]
[1752751749190,0.69,175.85,175.82,0.03]
[1752751749384,0.69,175.84,175.82,0.03]
[1752751749584,0.69,175.84,175.83,5.29022614]
[1752751750184,0.69,175.84,175.82,0.03]
[1752751750793,6.37702305,175.84,175.82,0.03]
[1752751750985,0.69,175.83,175.82,5.32022614]
[1752751753085,6.3773116,175.83,175.82,5.32022614]
[1752751753777,0.69,175.83,175.82,0.03]
[1752751753982,0.69,175.83,175.82,5.32022614]
[1752751754193,0.69,175.83,175.82,0.03]
[1752751754891,0.69,175.83,175.82,5.32022614]
[1752751755592,6.3773116,175.83,175.82,0.03]
[1752751755790,6.3773116,175.83,175.82,5.32022614]
[1752751758189,6.3773116,175.83,175.82,0.03]
[1752751758391,6.3773116,175.83,175.82,5.32022614]
[1752751760294,6.3773116,175.83,175.82,0.03]
[1752751760503,6.3773116,175.83,175.82,5.32022614]
[1752751760701,6.3773116,175.83,175.82,0.03]
[1752751761009,0.69,175.83,175.82,5.32022614]
[1752751761187,6.37708321,175.84,175.82,5.32022614]
[1752751761380,5.68708321,175.84,175.83,5.29022614]
[1752751761575,5.68708321,175.84,175.82,0.03]
[1752751761576,6.37708321,175.84,175.82,0.03]
[1752751761781,6.37708321,175.84,175.83,5.29022614]
[1752751766300,6.37708321,175.84,175.82,0.03]
[1752751766503,5.6863414,175.86,175.83,5.29022614]
[1752751766885,5.6863414,175.86,175.82,0.03]
[1752751767100,0.69,175.85,175.82,0.03]
[1752751767295,0.69,175.85,175.83,5.29022614]
[1752751767785,5.68698817,175.84,175.83,5.29022614]
[1752751767991,6.37698817,175.84,175.82,0.03]
[1752751768189,0.69,175.83,175.82,0.03]
[1752751769284,6.3773116,175.83,175.82,0.03]
[1752751769485,5.6873116,175.83,175.82,0.03]
[1752751769972,5.6873116,175.83,175.82,5.32022614]
[1752751771900,5.6873116,175.83,175.82,0.03]
[1752751772103,5.6873116,175.83,175.82,5.32022614]
[1752751772583,0.71,175.84,175.82,5.32022614]
[1752751772584,5.68711062,175.84,175.82,5.32022614]
[1752751772901,29.86,175.86,175.83,5.29022614]
[1752751772902,5.68676024,175.85,175.83,5.29022614]
[1752751773096,5.68676024,175.85,175.84,5.29022614]
[1752751773602,5.6864607,175.86,175.84,5.29022614]
[1752751773802,5.6864607,175.86,175.85,5.29022614]
[1752751773978,6.39613323,175.87,175.85,5.29022614]
[1752751774181,6.39613323,175.87,175.82,0.41]
[1752751774182,6.39613323,175.87,175.86,5.29022614]
[1752751774577,6.39613323,175.87,175.82,0.41]
[1752751774778,6.39613323,175.87,175.86,5.29022614]
[1752751774980,6.39613323,175.87,175.85,5.29022614]
[1752751775179,5.68569479,175.88,175.85,5.29022614]
[1752751775404,0.71,175.86,175.85,5.29022614]
[1752751776493,6.39569479,175.88,175.85,5.29022614]
[1752751776692,6.39516398,175.9,175.87,5.29022614]
[1752751777014,5.68516398,175.9,175.89,5.29022614]
[1752751777381,5.68472514,175.91,175.89,5.29022614]
[1752751777586,6.39446326,175.92,175.9,5.29022614]
[1752751777888,6.39446326,175.92,175.91,5.29022614]
[1752751780492,6.39446326,175.92,175.9,5.29022614]
[1752751781216,5.68446326,175.92,175.91,5.29022614]
[1752751782231,0.06,175.93,175.91,5.67022614]
[1752751782388,0.06,175.93,175.92,5.29022614]
[1752751782589,0.06,175.93,175.92,5.67022614]
[1752751782993,0.06,175.93,175.92,5.29022614]
[1752751788718,0.06,175.93,175.92,5.67022614]
[1752751790615,0.06,175.93,175.89,79.04]
[1752751790928,0.77,175.93,175.92,26.0]
[1752751791108,0.06,175.93,175.92,31.29022614]
[1752751792733,0.06,175.93,175.92,26.0]
[1752751792904,0.06,175.93,175.92,31.29022614]
[1752751794535,0.06,175.93,175.92,26.0]
[1752751794707,0.06,175.93,175.92,31.29022614]
[1752751797418,0.02305349,175.93,175.92,31.29022614]
[1752751799016,0.73305349,175.93,175.92,31.29022614]
[1752751799732,0.73305349,175.93,175.92,26.0]
[1752751799928,0.73305349,175.93,175.89,5.29022614]
[1752751800630,5.684402,175.92,175.89,5.29022614]
[1752751800832,0.71,175.91,175.9,5.29022614]
[1752751801034,5.684402,175.92,175.88,23.2]
[1752751801235,0.71,175.91,175.89,5.29022614]
[1752751801423,0.71,175.91,175.88,23.2]
[1752751801424,0.71,175.91,175.88,28.49022614]
[1752751802328,0.71,175.9,175.87,26.0]
[1752751802531,0.71,175.9,175.85,29.8]
[1752751802532,5.68537153,175.89,175.84,5.32022614]
[1752751802740,0.71,175.88,175.84,5.32022614]
[1752751803153,0.71,175.88,175.87,5.29022614]
[1752751803343,5.68537153,175.89,175.86,5.29022614]
[1752751803539,5.68537153,175.89,175.85,5.29022614]
[1752751803836,5.29022614,175.87,175.84,0.03]
[1752751804246,0.71,175.86,175.84,0.03]
[1752751804422,5.68666477,175.85,175.84,0.03]
[1752751804942,41.48689091,175.85,175.84,0.03]
[1752751805924,41.48689091,175.85,175.84,1e-08]
[1752751806122,58.27157488,175.85,175.84,1e-08]
[1752751806328,52.98134874,175.85,175.84,1e-08]
[1752751806543,58.27157488,175.85,175.84,1e-08]
[1752751806926,16.78468397,175.84,175.82,1e-08]
[1752751807256,5.29022614,175.83,175.82,1e-08]
[1752751807425,22.78491011,175.83,175.82,1e-08]
[1752751808032,42.69050072,175.83,175.76,0.03]
[1752751808228,5.29022614,175.81,175.76,0.03]
[1752751808428,29.8,175.8,175.76,0.03]
[1752751808840,6.00022614,175.79,175.76,0.03]
[1752751809045,5.29022614,175.78,175.76,0.03]
[1752751809219,6.00022614,175.78,175.76,0.03]
[1752751809419,0.71,175.77,175.76,0.03]
[1752751810051,11.68947914,175.77,175.76,0.03]
[1752751810426,6.399253,175.77,175.76,0.03]
[1752751810928,11.68947914,175.77,175.76,0.03]
[1752751811124,16.78468397,175.76,175.74,0.03]
[1752751811341,35.09022614,175.75,175.72,8.58131957]
[1752751811520,5.29022614,175.73,175.72,8.58131957]
[1752751812019,32.40054799,175.73,175.72,8.58131957]
[1752751812221,37.69077413,175.73,175.72,8.58131957]
[1752751812630,11.69077413,175.73,175.72,8.58131957]
[1752751813238,0.71,175.73,175.72,8.58131957]
[1752751813430,6.40054799,175.73,175.72,8.58131957]
[1752751813742,0.71,175.73,175.72,8.58131957]
[1752751813941,30.51,175.75,175.72,13.87154571]
[1752751814126,29.8,175.75,175.73,5.29022614]
[1752751814528,30.51,175.75,175.73,5.29022614]
[1752751815133,6.39901786,175.78,175.74,5.29022614]
[1752751815317,36.19901786,175.78,175.75,5.29022614]
[1752751815531,0.71,175.77,175.75,5.29022614]
[1752751815721,0.71,175.77,175.76,5.29022614]
[1752751815921,0.71,175.8,175.76,5.29022614]
[1752751816122,0.71,175.8,175.78,5.29022614]
[1752751816123,29.8,175.79,175.78,5.29022614]
[1752751816735,30.51,175.79,175.78,5.29022614]
[1752751818139,36.19860572,175.79,175.77,5.29022614]
[1752751818444,0.71,175.82,175.78,5.29022614]
[1752751818652,0.71,175.82,175.81,5.29022614]
[1752751818653,30.51,175.82,175.81,5.29022614]
[1752751819553,36.19763508,175.82,175.77,0.41]
[1752751820140,36.19763508,175.82,175.81,5.29022614]
[1752751820345,0.71,175.81,175.75,32.09981482]
[1752751820543,0.71,175.81,175.8,5.29022614]
[1752751821242,6.39795859,175.81,175.8,5.29022614]
[1752751822257,6.39795859,175.81,175.79,5.29022614]
[1752751822560,0.71,175.8,175.79,5.29022614]
[1752751823428,0.71,175.8,175.78,5.29022614]
[1752751823630,29.78,175.79,175.78,5.29022614]
[1752751823853,30.49,175.79,175.78,5.29022614]
[1752751824232,30.49,175.79,175.73,5.29022614]
[1752751824233,5.68892934,175.78,175.73,5.29022614]
[1752751824447,0.71,175.77,175.74,5.29022614]
[1752751824644,29.78,175.76,175.72,8.61131957]
[1752751824847,0.71,175.75,175.72,13.90154571]
[1752751825552,29.78,175.74,175.72,13.90154571]
[1752751825739,0.71,175.73,175.72,13.90154571]
[1752751826355,6.40054799,175.73,175.72,13.90154571]
[1752751826950,5.69054799,175.73,175.72,8.61131957]
[1752751827255,6.40054799,175.73,175.72,8.61131957]
[1752751829640,0.71,175.73,175.72,8.61131957]
[1752751829840,35.47034832,175.74,175.72,13.90154571]
[1752751829841,29.78,175.74,175.72,13.90154571]
[1752751830036,30.48,175.74,175.73,5.29022614]
[1752751830557,36.17022419,175.74,175.73,5.29022614]
[1752751830757,29.78,175.74,175.73,5.29022614]
[1752751830932,35.47022419,175.74,175.73,5.29022614]
[1752751831344,35.47022419,175.74,175.72,8.61131957]
[1752751831545,0.7,175.73,175.72,13.90154571]
[1752751832545,5.68991895,175.75,175.72,13.90154571]
[1752751832750,29.78,175.74,175.72,8.61131957]
[1752751832950,0.7,175.73,175.72,8.61131957]
[1752751833262,0.7,175.73,175.72,13.90154571]
[1752751833451,6.39054799,175.73,175.72,13.90154571]
[1752751833651,6.39054799,175.73,175.72,8.61131957]
[1752751833836,6.39054799,175.73,175.72,13.90154571]
[1752751834032,6.39054799,175.73,175.72,8.61131957]
[1752751834965,0.7,175.73,175.72,8.61131957]
[1752751835164,29.78,175.73,175.72,13.90154571]
[1752751835352,0.7,175.78,175.72,14.31154571]
[1752751835567,5.68831276,175.8,175.77,5.29022614]
[1752751835768,5.68831276,175.8,175.78,5.29022614]
[1752751835769,30.48,175.79,175.78,5.29022614]
[1752751835968,29.78,175.79,175.74,0.41]
[1752751836163,30.48,175.79,175.78,5.29022614]
[1752751837572,36.16860572,175.79,175.76,5.29022614]
[1752751837771,0.7,175.78,175.72,8.61131957]
[1752751837972,29.78,175.77,175.74,5.29022614]
[1752751838271,0.7,175.76,175.75,5.29022614]
[1752751838978,0.7,175.76,175.72,8.61131957]
[1752751839271,30.48,175.75,175.72,8.61131957]
[1752751839481,29.78,175.74,175.72,8.61131957]
[1752751840282,29.78,175.74,175.73,5.29022614]
[1752751840462,0.7,175.74,175.73,5.29022614]
[1752751840782,29.78,175.75,175.72,8.61131957]
[1752751840972,0.7,175.74,175.72,13.90154571]
[1752751841173,0.7,175.73,175.72,8.61131957]
[1752751841688,0.7,175.73,175.72,13.90154571]
[1752751841977,6.38985475,175.76,175.72,13.90154571]
[1752751842180,0.7,175.76,175.75,5.29022614]
[1752751842378,30.46,175.76,175.74,5.29022614]
[1752751842582,0.7,175.75,175.72,8.61131957]
[1752751842878,29.76,175.76,175.74,5.29022614]
[1752751843378,0.7,175.75,175.74,5.29022614]
[1752751844189,6.38990042,175.75,175.72,8.61131957]
[1752751844383,0.7,175.74,175.73,5.29022614]
[1752751845676,6.39022419,175.74,175.72,8.61131957]
[1752751845983,30.46,175.73,175.72,13.90154571]
[1752751846587,0.7,175.75,175.72,13.90154571]
[1752751846761,0.7,175.75,175.73,5.29022614]
[1752751846762,29.76,175.74,175.73,5.29022614]
[1752751847380,30.46,175.74,175.73,5.29022614]
[1752751847564,36.1505399,175.74,175.72,8.61131957]
[1752751847892,0.7,175.73,175.72,8.61131957]
[1752751848780,17.48468397,175.73,175.72,8.61131957]
[1752751848997,22.77491011,175.73,175.72,7.89131957]
[1752751849295,16.78468397,175.72,175.65,5.29022614]
[1752751849460,16.78468397,175.7,175.66,5.29022614]
[1752751849656,5.69216757,175.68,175.66,5.29022614]
[1752751849876,29.76,175.67,175.66,5.29022614]
[1752751850885,0.7,175.67,175.61,2.312]
[1752751851080,0.7,175.7,175.66,5.29022614]
[1752751851385,30.46,175.69,175.67,5.29022614]
[1752751851583,0.7,175.68,175.67,5.29022614]
[1752751851968,0.7,175.68,175.63,0.69]
[1752751852168,5.69174801,175.7,175.62,0.69]
[1752751852374,29.76,175.69,175.65,0.69]
[1752751852569,0.7,175.69,175.68,5.29022614]
[1752751852888,29.76,175.69,175.68,5.29022614]
[1752751853471,29.76,175.69,175.68,5.98022614]
[1752751853784,29.76,175.74,175.68,16.96240227]
[1752751853969,29.76,175.74,175.73,5.29022614]
[1752751855083,30.46,175.74,175.73,5.29022614]
[1752751855489,29.76,175.74,175.73,5.29022614]
[1752751855869,35.45022419,175.74,175.73,5.29022614]
[1752751856066,36.15022419,175.74,175.69,26.0]
[1752751856284,35.45022419,175.74,175.69,26.0]
[1752751856487,35.45022419,175.74,175.67,0.69]
[1752751856691,35.45022419,175.74,175.72,5.29022614]
[1752751856878,0.7,175.73,175.72,5.29022614]
[1752751857689,0.7,175.73,175.66,26.0]
[1752751857885,0.7,175.73,175.69,5.29022614]
[1752751857886,5.69119572,175.71,175.69,5.29022614]
[1752751858078,30.46,175.7,175.64,0.03]
[1752751858282,30.46,175.7,175.67,5.29022614]
[1752751858474,0.7,175.69,175.67,5.29022614]
[1752751858780,29.76,175.68,175.65,0.03]
[1752751858970,29.76,175.68,175.67,5.29022614]
[1752751859168,29.76,175.68,175.65,0.03]
[1752751859368,29.76,175.68,175.67,5.29022614]
[1752751859564,30.45,175.68,175.65,0.03]
[1752751859784,0.69,175.67,175.66,5.29022614]
[1752751859983,6.3824916,175.67,175.66,5.29022614]
[1752751860488,6.3824916,175.67,175.65,5.32022614]
[1752751860685,47.23468397,175.66,175.65,0.03]
[1752751860875,17.47468397,175.66,175.65,0.03]
[1752751861079,0.69,175.68,175.65,5.32022614]
[1752751861277,24.8152389,175.72,175.67,5.29022614]
[1752751861581,30.43,175.71,175.66,0.72]
[1752751861786,30.43,175.71,175.65,0.03]
[1752751861987,6.38151963,175.7,175.65,0.03]
[1752751862285,23.1662036,175.7,175.67,5.29022614]
[1752751862488,22.4762036,175.7,175.67,5.29022614]
[1752751862684,0.69,175.69,175.65,0.03]
[1752751862883,0.69,175.69,175.68,5.29022614]
[1752751863196,29.76,175.69,175.65,0.03]
[1752751863374,29.76,175.69,175.68,8.48027767]
[1752751863792,29.76,175.69,175.65,0.03]
[1752751863970,36.14186394,175.69,175.65,0.03]
[1752751864170,36.14186394,175.69,175.68,8.48027767]
[1752751864395,36.14186394,175.69,175.65,0.03]
[1752751864592,36.14186394,175.69,175.68,8.48027767]
[1752751865478,36.14186394,175.69,175.67,8.48027767]
[1752751865795,0.69,175.68,175.65,0.03]
[1752751865998,6.3824356,175.68,175.66,8.48027767]
[1752751866195,0.69,175.67,175.66,8.48027767]
[1752751866671,30.43,175.67,175.66,8.48027767]
[1752751866871,29.74,175.67,175.66,8.48027767]
[1752751867090,29.74,175.67,175.66,9.20027767]
[1752751867480,29.74,175.67,175.66,8.48027767]
[1752751867680,29.74,175.67,175.66,9.20027767]
[1752751868197,29.74,175.67,175.66,8.48027767]
[1752751869402,36.1225132,175.67,175.66,8.48027767]
[1752751869703,35.4325132,175.67,175.66,8.48027767]
[1752751869876,5.69226002,175.68,175.66,8.48027767]
[1752751870076,0.69,175.71,175.67,8.48027767]
[1752751870275,35.43151963,175.7,175.66,19.95]
[1752751870472,0.69,175.69,175.66,19.23]
[1752751870699,35.43151963,175.7,175.66,19.23]
[1752751870892,35.43151963,175.7,175.67,8.48027767]
[1752751871070,35.43151963,175.7,175.68,8.48027767]
[1752751871494,0.69,175.69,175.67,8.48027767]
[1752751871796,35.43151963,175.7,175.66,27.71027767]
[1752751871797,0.69,175.68,175.66,27.71027767]
[1752751872000,29.74,175.67,175.66,27.71027767]
[1752751872199,36.1224916,175.67,175.66,19.23]
[1752751872583,36.1224916,175.67,175.66,27.71027767]
[1752751872779,35.4324916,175.67,175.66,27.71027767]
[1752751873393,29.74,175.67,175.66,27.71027767]
[1752751874012,36.1224916,175.67,175.66,27.71027767]
[1752751874210,36.1224916,175.67,175.66,19.23]
[1752751875316,52.90717557,175.67,175.66,19.23]
[1752751875617,52.90717557,175.67,175.65,0.03]
[1752751875618,16.78468397,175.66,175.65,0.03]
[1752751875791,17.47468397,175.66,175.65,0.03]
[1752751876192,36.12281566,175.66,175.65,0.03]
[1752751876414,35.43281566,175.66,175.65,8.51027767]
[1752751876604,5.69281566,175.66,175.65,8.51027767]
[1752751876807,29.74,175.66,175.65,9.23027767]
[1752751877888,29.74,175.66,175.65,8.51027767]
[1752751878326,29.74,175.66,175.65,0.03]
[1752751878511,35.43281566,175.66,175.65,8.51027767]
[1752751878691,35.43281566,175.66,175.65,0.03]
[1752751878893,36.12281566,175.66,175.65,0.03]
[1752751879218,35.43281566,175.66,175.65,0.03]
[1752751880118,36.12281566,175.66,175.65,0.03]
[1752751880494,35.43281566,175.66,175.65,8.51027767]
[1752751881012,29.74,175.66,175.65,8.51027767]